bitfinex/quotes_SOLUSD_20250819
["timestamp","ask_amount","ask_price","bid_price","bid_amount"]
[1755613291256,41.42,181.71,181.69,16.93963899]
[1755613291431,41.42,181.71,181.7,22.44321631]
[1755613291758,41.42,181.71,181.7,5.50357732]
[1755613291942,41.42,181.71,181.68,0.03]
[1755613292141,41.42,181.71,181.68,5.53412162]
[1755613292142,42.11,181.71,181.68,5.53412162]
[1755613292342,42.11,181.71,181.68,0.03]
[1755613292657,41.42,181.71,181.68,0.03]
[1755613292870,16.93963899,181.69,181.68,0.03]
[1755613293240,17.60963899,181.69,181.68,0.03]
[1755613293444,41.42,181.71,181.68,0.03]
[1755613293842,16.93963899,181.69,181.68,0.03]
[1755613294051,0.67,181.7,181.68,0.03]
[1755613294360,17.60963899,181.69,181.68,0.03]
[1755613294733,43.60963899,181.69,181.68,0.03]
[1755613296133,62.70911323,181.69,181.68,0.03]
[1755613296445,36.70911323,181.69,181.68,0.03]
[1755613296769,38.91619223,181.69,181.68,0.03]
[1755613297274,61.25671799,181.69,181.68,0.03]
[1755613297466,43.60963899,181.69,181.68,0.03]
[1755613297768,104.14911323,181.69,181.68,0.03]
[1755613299233,98.645233,181.69,181.68,0.03]
[1755613300145,85.04963899,181.69,181.68,0.03]
[1755613300348,78.92549395,181.69,181.68,0.03]
[1755613301069,92.52108796,181.69,181.68,0.03]
[1755613301239,72.02496819,181.69,181.68,0.03]
[1755613301862,55.70559401,181.69,181.68,0.03]
[1755613302055,92.52108796,181.69,181.68,0.03]
[1755613302364,72.02496819,181.69,181.68,0.03]
[1755613304464,51.08108796,181.69,181.68,0.03]
[1755613304664,66.46108796,181.69,181.68,0.03]
[1755613304967,71.96496819,181.69,181.68,0.03]
[1755613306648,2.206471,181.72,181.68,0.03]
[1755613306970,26.0,181.69,181.68,0.03]
[1755613307136,10.81549395,181.7,181.68,0.03]
[1755613307342,36.81549395,181.69,181.68,0.03]
[1755613307654,10.81549395,181.7,181.68,0.03]
[1755613307855,41.38,181.69,181.68,0.03]
[1755613308065,52.19549395,181.69,181.68,0.03]
[1755613308539,52.86549395,181.69,181.68,0.03]
[1755613309066,97.96496819,181.69,181.68,0.03]
[1755613310564,26.0,181.69,181.68,0.03]
[1755613310773,41.34,181.69,181.68,0.03]
[1755613310959,41.34,181.69,181.68,0.75]
[1755613311270,41.32,181.69,181.68,11.56549395]
[1755613311460,0.06,181.74,181.68,11.56549395]
[1755613311675,0.06,181.74,181.71,10.81549395]
[1755613311849,41.4,181.73,181.71,10.81549395]
[1755613312176,41.4,181.73,181.72,11.53549395]
[1755613312780,41.4,181.73,181.72,17.03846555]
[1755613312947,41.4,181.73,181.69,0.72]
[1755613313145,10.81549395,181.72,181.69,0.72]
[1755613313343,41.42,181.71,181.69,0.72]
[1755613313970,41.42,181.71,181.68,0.03]
[1755613314173,41.42,181.71,181.68,5.53409006]
[1755613314380,52.23549395,181.71,181.68,0.03]
[1755613314557,10.81549395,181.69,181.68,0.03]
[1755613314753,52.21549395,181.69,181.68,0.03]
[1755613314975,41.4,181.69,181.68,0.03]
[1755613315178,52.21549395,181.69,181.68,0.03]
[1755613315552,52.88549395,181.69,181.68,0.03]
[1755613316168,41.4,181.69,181.68,0.03]
[1755613317157,52.88549395,181.69,181.68,0.03]
[1755613317370,52.21549395,181.69,181.68,0.03]
[1755613318797,41.4,181.69,181.68,0.03]
[1755613319667,41.4,181.69,181.68,0.75]
[1755613320473,41.4,181.69,181.68,11.56549395]
[1755613320849,0.06,181.74,181.68,30.83013506]
[1755613321070,41.32,181.73,181.72,10.81549395]
[1755613321666,41.32,181.73,181.71,10.81549395]
[1755613321870,41.32,181.73,181.7,10.81549395]
[1755613322069,41.32,181.73,181.68,5.53418317]
[1755613322280,41.32,181.73,181.69,10.81549395]
[1755613322887,11.48549395,181.72,181.68,0.03]
[1755613323055,42.0,181.73,181.68,0.03]
[1755613323254,52.13549395,181.73,181.68,0.03]
[1755613323492,11.49549395,181.72,181.68,0.03]
[1755613323707,10.81549395,181.71,181.68,0.03]
[1755613323986,10.81549395,181.69,181.68,0.03]
[1755613324762,11.49549395,181.69,181.68,0.03]
[1755613325871,56.59496819,181.69,181.68,0.03]
[1755613326187,13.59559401,181.66,181.64,0.03]
[1755613326358,10.81549395,181.63,181.62,0.03]
[1755613326692,29.32260045,181.63,181.62,0.03]
[1755613326871,76.80829884,181.63,181.62,0.03]
[1755613327797,16.40700644,181.63,181.62,0.03]
[1755613327988,57.70700644,181.63,181.62,0.03]
[1755613328162,4.91151249,181.63,181.62,0.03]
[1755613328362,0.68,181.66,181.62,0.03]
[1755613328688,16.99442368,181.63,181.62,0.03]
[1755613329287,41.3,181.65,181.62,0.03]
[1755613329482,4.92408829,181.64,181.62,0.03]
[1755613329677,58.29442368,181.65,181.62,0.03]
[1755613329990,18.18933089,181.71,181.63,0.71]
[1755613329991,0.68,181.71,181.63,0.71]
[1755613330164,5.56272312,181.73,181.64,16.99442368]
[1755613330365,5.56272312,181.73,181.63,0.71]
[1755613330366,16.99442368,181.68,181.63,0.71]
[1755613330565,42.67824843,181.67,181.63,0.71]
[1755613330782,41.3,181.67,181.63,0.71]
[1755613330982,41.3,181.67,181.63,6.21569839]
[1755613331179,41.3,181.67,181.62,5.53597289]
[1755613331482,21.92556943,181.66,181.62,0.03]
[1755613331659,18.3727696,181.65,181.62,0.03]
[1755613331861,41.3,181.64,181.63,17.70442368]
[1755613332064,41.3,181.64,181.63,0.71]
[1755613332556,41.3,181.64,181.62,0.03]
[1755613333391,41.3,181.64,181.63,0.71]
[1755613333778,41.98,181.64,181.62,0.03]
[1755613333962,19.0529636,181.63,181.62,0.03]
[1755613334167,5.6096393,181.63,181.62,0.03]
[1755613334381,22.60406298,181.63,181.62,0.03]
[1755613334575,5.6096393,181.63,181.62,0.03]
[1755613334788,22.60503743,181.63,181.62,0.03]
[1755613334979,31.09921904,181.63,181.62,0.03]
[1755613335182,31.77921904,181.63,181.62,0.03]
[1755613335575,45.37481305,181.63,181.62,0.03]
[1755613335759,28.38038937,181.63,181.62,0.03]
[1755613336096,45.37481305,181.63,181.62,0.03]
[1755613336273,51.59380905,181.63,181.62,0.03]
[1755613336820,77.59380905,181.63,181.62,0.03]
[1755613337188,60.59938537,181.63,181.62,0.03]
[1755613337389,77.59380905,181.63,181.62,0.03]
[1755613338016,51.59380905,181.63,181.62,0.03]
[1755613339000,51.58400352,181.63,181.62,0.03]
[1755613339480,51.5841089,181.63,181.62,0.03]
[1755613339802,51.58380583,181.63,181.62,0.03]
[1755613340175,77.58380583,181.63,181.62,0.03]
[1755613340374,14.80808975,181.63,181.62,0.03]
[1755613340605,16.99442368,181.63,181.62,0.03]
[1755613340784,18.37312103,181.63,181.62,0.03]
[1755613341102,26.25264337,181.63,181.62,0.03]
[1755613341305,65.84823738,181.63,181.62,0.03]
[1755613341616,71.35393577,181.63,181.62,0.03]
[1755613342118,71.35427473,181.63,181.62,0.03]
[1755613342601,99.07868072,181.63,181.62,0.03]
[1755613342802,92.89298233,181.63,181.62,0.03]
[1755613343180,85.69345999,181.63,181.62,0.03]
[1755613343509,84.31442368,181.63,181.62,0.03]
[1755613343812,41.32,181.63,181.62,0.03]
[1755613344025,16.99442368,181.67,181.62,0.74]
[1755613344329,16.99442368,181.67,181.62,0.03]
[1755613344330,16.99442368,181.63,181.62,0.03]
[1755613344499,58.31442368,181.63,181.62,0.03]
[1755613345106,41.32,181.63,181.62,0.03]
[1755613345411,58.31442368,181.63,181.62,0.03]
[1755613345805,78.09571608,181.63,181.62,0.03]
[1755613346015,79.47453699,181.63,181.62,0.03]
[1755613346215,56.07594061,181.63,181.62,0.03]
[1755613346514,41.36,181.63,181.62,0.03]
[1755613346703,58.35442368,181.63,181.62,0.03]
[1755613346907,60.41328489,181.63,181.62,0.03]
[1755613347114,41.36,181.63,181.62,0.03]
[1755613347331,0.06,181.68,181.62,17.73442368]
[1755613347626,41.56,181.68,181.63,0.71]
[1755613347802,16.99442368,181.67,181.63,0.71]
[1755613348004,58.49442368,181.66,181.62,0.03]
[1755613348403,41.5,181.66,181.62,0.74]
[1755613349116,41.5,181.66,181.62,0.03]
[1755613349414,16.99442368,181.63,181.62,0.03]
[1755613349719,41.6,181.63,181.62,0.03]
[1755613350420,52.42117212,181.63,181.62,0.03]
[1755613350787,41.6,181.63,181.62,0.03]
[1755613350990,41.6,181.63,181.62,0.74]
[1755613351191,41.6,181.63,181.62,11.56117212]
[1755613351490,41.6,181.63,181.62,0.74]
[1755613351686,41.6,181.63,181.62,0.03]
[1755613353629,53.12117212,181.63,181.62,0.03]
[1755613353818,58.62687051,181.63,181.62,0.03]
[1755613355118,98.22246452,181.63,181.62,0.03]
[1755613355320,106.78876509,181.63,181.62,0.03]
[1755613356706,77.25321864,181.63,181.62,0.03]
[1755613356912,75.87441949,181.63,181.62,0.03]
[1755613357115,66.43235337,181.63,181.62,0.03]
[1755613357422,39.59559401,181.59,181.58,0.03]
[1755613357604,111.28455643,181.59,181.56,0.03]
[1755613357802,16.32868988,181.57,181.56,0.03]
[1755613358018,80.01206779,181.57,181.56,0.03]
[1755613358333,80.71206779,181.57,181.56,0.03]
[1755613358831,69.89089567,181.57,181.56,0.03]
[1755613358992,72.55133948,181.57,181.56,0.03]
[1755613359192,68.2,181.57,181.56,0.03]
[1755613359415,79.02117212,181.57,181.56,0.03]
[1755613359623,78.32117212,181.57,181.56,0.03]
[1755613359825,84.52868988,181.57,181.56,0.03]
[1755613360130,85.90794522,181.57,181.56,0.03]
[1755613360314,26.0,181.57,181.56,0.03]
[1755613360514,41.64,181.57,181.56,11.57117212]
[1755613360830,41.64,181.57,181.56,0.75]
[1755613361137,41.64,181.57,181.56,11.57117212]
[1755613361810,41.64,181.57,181.56,17.07899322]
[1755613362005,2.207566,181.64,181.56,17.07899322]
[1755613362219,41.64,181.63,181.61,10.82117212]
[1755613362423,41.64,181.62,181.61,10.82117212]
[1755613362906,41.64,181.62,181.56,5.5378211]
[1755613363115,41.64,181.62,181.6,10.82117212]
[1755613363410,41.64,181.62,181.56,0.03]
[1755613363626,53.16117212,181.62,181.56,0.03]
[1755613363828,10.82117212,181.6,181.56,0.03]
[1755613364127,42.99891533,181.59,181.56,0.03]
[1755613364318,10.82117212,181.58,181.56,0.03]
[1755613364509,41.68,181.57,181.56,0.03]
[1755613365327,41.68,181.57,181.56,11.57117212]
[1755613365921,41.68,181.57,181.56,6.2578211]
[1755613366428,41.68,181.57,181.56,17.07899322]
[1755613366737,16.613094,181.66,181.56,27.90016534]
[1755613366948,0.06,181.66,181.65,10.82117212]
[1755613367137,41.66,181.65,181.64,10.82117212]
[1755613367646,41.64,181.65,181.64,0.72]
[1755613368032,41.64,181.65,181.56,13.79955276]
[1755613368342,41.64,181.65,181.6,10.82117212]
[1755613368546,41.64,181.65,181.61,10.82117212]
[1755613368747,12.89978837,181.64,181.58,10.82117212]
[1755613369050,0.7,181.64,181.57,5.50751776]
[1755613369270,1.37864759,181.64,181.6,10.82117212]
[1755613369541,41.64,181.65,181.6,11.54117212]
[1755613369749,0.06,181.66,181.64,10.82117212]
[1755613369919,41.64,181.65,181.64,10.82117212]
[1755613370315,41.64,181.65,181.64,17.0465674]
[1755613371121,41.64,181.65,181.64,6.22539528]
[1755613371822,41.64,181.65,181.64,0.72]
[1755613372147,41.64,181.65,181.64,6.22539528]
[1755613373220,0.06,181.66,181.64,17.0465674]
[1755613373419,0.06,181.66,181.65,11.54117212]
[1755613373634,0.06,181.66,181.63,26.0]
[1755613373846,0.06,181.66,181.61,17.04742331]
[1755613374040,10.88117212,181.66,181.61,10.82117212]
[1755613374251,5.56481747,181.66,181.6,26.0]
[1755613374434,10.82117212,181.63,181.56,5.53781758]
[1755613374638,41.62,181.62,181.58,10.82117212]
[1755613374845,41.62,181.61,181.59,11.54117212]
[1755613375044,41.62,181.6,181.56,0.03]
[1755613375226,41.62,181.6,181.58,26.0]
[1755613376019,41.62,181.6,181.56,0.03]
[1755613376245,41.62,181.6,181.56,10.85117212]
[1755613376626,41.62,181.6,181.56,0.03]
[1755613376828,0.7,181.59,181.56,0.03]
[1755613377147,10.82117212,181.58,181.56,0.03]
[1755613377334,0.7,181.59,181.56,0.03]
[1755613377335,11.52117212,181.59,181.56,0.03]
[1755613377948,41.62,181.6,181.56,10.85117212]
[1755613378341,41.62,181.6,181.56,0.03]
[1755613378926,52.44117212,181.6,181.56,0.03]
[1755613379125,10.82117212,181.57,181.56,0.03]
[1755613379345,2.07899,181.59,181.56,0.03]
[1755613379346,0.7,181.59,181.56,0.03]
[1755613379627,10.82117212,181.57,181.56,0.03]
[1755613379822,0.7,181.57,181.56,0.03]
[1755613380021,11.52117212,181.57,181.56,0.03]
[1755613380222,42.32,181.6,181.56,0.03]
[1755613380448,1.3790391,181.59,181.56,0.03]
[1755613380748,10.82117212,181.58,181.56,0.03]
[1755613380951,11.52117212,181.58,181.56,0.03]
[1755613381146,10.82117212,181.57,181.56,0.03]
[1755613381323,11.52117212,181.57,181.56,0.03]
[1755613381525,42.32,181.6,181.56,0.03]
[1755613381755,0.7,181.57,181.56,0.03]
[1755613381933,11.52117212,181.57,181.56,0.03]
[1755613382650,17.02868988,181.57,181.56,0.03]
[1755613383036,11.52117212,181.57,181.56,0.03]
[1755613383230,0.7,181.57,181.56,0.03]
[1755613383427,11.52117212,181.57,181.56,0.03]
[1755613383633,0.7,181.57,181.56,0.03]
[1755613383954,11.52117212,181.57,181.56,0.03]
[1755613384331,0.7,181.57,181.56,0.03]
[1755613384527,10.82117212,181.57,181.56,0.03]
[1755613384843,11.49117212,181.57,181.56,0.03]
[1755613385251,53.05117212,181.57,181.56,0.03]
[1755613385451,44.437932,181.57,181.56,0.03]
[1755613385852,55.25910412,181.57,181.56,0.03]
[1755613386163,41.56,181.57,181.56,0.03]
[1755613386533,53.05117212,181.57,181.56,0.03]
[1755613387453,52.38117212,181.57,181.56,0.03]
[1755613387771,41.56,181.57,181.56,0.03]
[1755613387936,52.38117212,181.57,181.56,0.03]
[1755613388130,53.05117212,181.57,181.56,0.03]
[1755613388330,52.38117212,181.57,181.56,0.03]
[1755613388559,41.56,181.57,181.56,0.03]
[1755613388928,53.05117212,181.57,181.56,0.03]
[1755613389132,42.23,181.57,181.56,0.03]
[1755613389630,53.05117212,181.57,181.56,0.03]
[1755613390237,59.93785965,181.57,181.56,0.03]
[1755613390436,62.14591365,181.57,181.56,0.03]
[1755613390642,51.32474153,181.57,181.56,0.03]
[1755613390941,62.14591365,181.57,181.56,0.03]
[1755613391143,59.50514948,181.57,181.56,0.03]
[1755613391346,60.17514948,181.57,181.56,0.03]
[1755613391546,65.68266724,181.57,181.56,0.03]
[1755613392440,65.68278021,181.57,181.56,0.03]
[1755613392641,65.68499233,181.57,181.56,0.03]
[1755613393028,7.1261518,181.57,181.56,0.03]
[1755613393251,45.16733674,181.57,181.56,0.03]
[1755613393446,55.98850886,181.57,181.56,0.03]
[1755613393963,2.208054,181.57,181.56,0.03]
[1755613394136,41.58,181.57,181.56,0.03]
[1755613394460,53.78026114,181.57,181.56,0.03]
[1755613394641,43.62908902,181.57,181.56,0.03]
[1755613394960,41.58,181.57,181.56,0.03]
[1755613395137,42.9591052,181.57,181.56,0.03]
[1755613395340,41.58,181.57,181.56,0.03]
[1755613395542,52.40117212,181.57,181.56,0.03]
[1755613395939,2.20781,181.59,181.56,11.56117212]
[1755613396253,0.06,181.6,181.58,10.82117212]
[1755613396462,41.54,181.59,181.58,10.82117212]
[1755613396654,41.54,181.59,181.58,11.53117212]
[1755613396856,0.06,181.6,181.58,17.03838657]
[1755613397059,0.06,181.6,181.59,11.53117212]
[1755613397444,0.06,181.6,181.59,37.53117212]
[1755613398471,0.06,181.6,181.59,43.03808329]
[1755613399366,0.06,181.6,181.59,11.53117212]
[1755613399677,41.58,181.6,181.56,0.74]
[1755613399851,41.58,181.6,181.56,11.56117212]
[1755613400047,41.58,181.6,181.56,0.03]
[1755613400048,52.40117212,181.6,181.56,0.03]
[1755613400454,10.82117212,181.59,181.56,0.03]
[1755613400645,53.07117212,181.6,181.56,0.03]
[1755613400843,42.25,181.6,181.56,0.03]
[1755613401174,0.67,181.59,181.56,0.03]
[1755613401349,11.49117212,181.59,181.56,0.03]
[1755613401549,11.49117212,181.58,181.56,0.03]
[1755613401783,10.82117212,181.58,181.56,0.03]
[1755613402077,41.58,181.6,181.56,0.03]
[1755613402376,10.82117212,181.59,181.56,0.03]
[1755613402579,10.82117212,181.58,181.56,0.03]
[1755613402739,10.82117212,181.57,181.56,0.03]
[1755613402943,11.49117212,181.58,181.56,0.03]
[1755613403568,10.82117212,181.57,181.56,0.03]
[1755613403750,12.20022902,181.57,181.56,0.03]
[1755613404076,12.87025345,181.57,181.56,0.03]
[1755613404379,16.41181572,181.57,181.56,0.03]
[1755613404584,21.91933348,181.57,181.56,0.03]
[1755613405088,25.57955944,181.57,181.56,0.03]
[1755613406183,21.91933348,181.57,181.56,0.03]
[1755613406394,57.83181572,181.57,181.56,0.03]
[1755613406561,54.29025345,181.57,181.56,0.03]
[1755613408454,63.34322443,181.57,181.56,0.03]
[1755613408650,67.0071809,181.57,181.56,0.03]
[1755613411289,80.60277491,181.57,181.56,0.03]
[1755613411487,79.22369358,181.57,181.56,0.03]
[1755613411676,80.59956336,181.57,181.56,0.03]
[1755613412064,80.59956336,181.57,181.54,0.03]
[1755613412065,13.59559401,181.55,181.54,0.03]
[1755613412268,39.59559401,181.51,181.5,0.03]
[1755613412465,79.56053597,181.51,181.5,0.03]
[1755613412674,83.77083475,181.51,181.5,0.03]
[1755613413105,87.4311412,181.51,181.5,0.03]
[1755613413404,92.94047952,181.51,181.5,0.03]
[1755613414399,89.28017307,181.51,181.5,0.03]
[1755613414558,89.28017307,181.51,181.36,13.78430516]
[1755613414559,26.0,181.47,181.37,0.65]
[1755613414762,10.82117212,181.41,181.37,0.65]
[1755613414977,41.36,181.4,181.37,0.65]
[1755613415177,41.36,181.4,181.38,0.65]
[1755613415405,41.36,181.4,181.37,5.51356532]
[1755613415580,41.36,181.4,181.39,0.65]
[1755613415769,41.36,181.4,181.37,5.51356532]
[1755613415972,41.36,181.4,181.39,0.65]
[1755613416566,41.36,181.4,181.36,5.513895]
[1755613416780,41.36,181.4,181.37,11.47117212]
[1755613417089,41.36,181.4,181.38,0.65]
[1755613417382,41.36,181.4,181.36,16.98506712]
[1755613417593,41.36,181.4,181.38,0.65]
[1755613418374,10.82117212,181.44,181.39,0.65]
[1755613418570,42.08,181.43,181.36,6.163895]
[1755613418767,52.20117212,181.42,181.36,6.163895]
[1755613418987,41.38,181.41,181.36,6.163895]
[1755613419380,41.38,181.41,181.37,0.65]
[1755613419588,41.38,181.41,181.37,10.82117212]
[1755613419779,41.38,181.41,181.38,0.65]
[1755613419975,41.38,181.41,181.36,16.33506712]
[1755613420180,41.38,181.41,181.37,0.65]
[1755613420382,41.38,181.41,181.36,5.513895]
[1755613420684,41.38,181.41,181.38,0.65]
[1755613420875,41.38,181.41,181.39,0.65]
[1755613421078,10.82117212,181.46,181.4,11.47117212]
[1755613421271,41.38,181.45,181.41,0.65]
[1755613421592,41.38,181.45,181.4,16.33374931]
[1755613421780,41.38,181.45,181.41,11.47117212]
[1755613421967,41.38,181.45,181.42,0.65]
[1755613422393,41.38,181.45,181.4,5.51257719]
[1755613422592,10.82117212,181.43,181.37,0.65]
[1755613422792,41.38,181.42,181.37,6.163591]
[1755613423129,41.38,181.42,181.38,11.47117212]
[1755613423298,42.08,181.42,181.37,16.33476312]
[1755613423592,10.82117212,181.41,181.36,16.33506713]
[1755613423898,41.38,181.42,181.37,11.47117212]
[1755613423899,52.20117212,181.42,181.37,11.47117212]
[1755613424084,1.38034097,181.41,181.38,0.65]
[1755613424487,1.38034097,181.41,181.36,16.33506713]
[1755613424800,1.38034097,181.41,181.37,11.47117212]
[1755613424984,41.38,181.42,181.37,0.65]
[1755613425291,52.90117212,181.42,181.37,0.65]
[1755613425469,52.90117212,181.42,181.37,6.16352143]
[1755613425883,52.90117212,181.42,181.37,0.65]
[1755613426101,12.90151298,181.41,181.34,0.65]
[1755613426272,10.82117212,181.41,181.36,10.82117212]
[1755613426471,52.20117212,181.42,181.37,0.65]
[1755613426672,41.38,181.42,181.34,19.300752]
[1755613426999,41.38,181.42,181.38,0.65]
[1755613427297,52.20117212,181.42,181.34,19.300752]
[1755613427595,0.7,181.41,181.35,5.51398964]
[1755613427785,12.90151371,181.41,181.36,10.82117212]
[1755613427986,0.7,181.4,181.36,10.82117212]
[1755613428199,41.38,181.39,181.34,16.33558604]
[1755613428497,41.38,181.39,181.34,16.98558604]
[1755613428685,41.38,181.39,181.35,10.82117212]
[1755613429595,41.38,181.39,181.34,5.51441392]
[1755613429792,10.82117212,181.35,181.33,0.03]
[1755613429997,52.20117212,181.34,181.33,0.03]
[1755613430185,41.38,181.34,181.33,0.03]
[1755613430389,52.20117212,181.34,181.33,0.03]
[1755613430583,41.38,181.34,181.33,0.03]
[1755613431307,5.515646,181.37,181.33,0.03]
[1755613431601,11.52117212,181.43,181.36,10.82117212]
[1755613431804,10.82117212,181.4,181.35,10.82117212]
[1755613431976,0.7,181.39,181.35,10.82117212]
[1755613432176,41.42,181.38,181.35,10.82117212]
[1755613432586,0.7,181.37,181.33,10.85117212]
[1755613432991,0.7,181.36,181.33,0.03]
[1755613433290,41.42,181.38,181.33,0.03]
[1755613433492,0.7,181.37,181.33,0.03]
[1755613433981,52.24117212,181.38,181.33,0.03]
[1755613434182,41.42,181.38,181.35,10.82117212]
[1755613434603,41.42,181.38,181.35,11.47117212]
[1755613434902,42.12,181.38,181.34,10.82117212]
[1755613435204,0.7,181.37,181.33,10.85117212]
[1755613435414,41.42,181.38,181.35,10.82117212]
[1755613435592,41.42,181.38,181.34,10.82117212]
[1755613435988,41.42,181.38,181.35,10.82117212]
[1755613436506,41.42,181.38,181.34,11.47117212]
[1755613437006,11.52117212,181.4,181.34,11.47117212]
[1755613437200,0.7,181.43,181.39,10.82117212]
[1755613437399,10.82117212,181.4,181.35,10.82117212]
[1755613437584,11.52117212,181.39,181.33,5.54479144]
[1755613437783,41.4,181.38,181.34,10.82117212]
[1755613437982,41.4,181.38,181.33,16.36596356]
[1755613438208,0.7,181.37,181.33,16.36596356]
[1755613438393,41.4,181.38,181.34,10.82117212]
[1755613438589,41.4,181.38,181.33,5.54479144]
[1755613438590,42.1,181.38,181.33,0.03]
[1755613438810,41.4,181.38,181.33,10.85117212]
[1755613438996,0.7,181.37,181.33,0.03]
[1755613439196,0.7,181.37,181.33,10.85117212]
[1755613439697,41.4,181.38,181.34,10.82117212]
[1755613439901,16.573213,181.42,181.37,10.82117212]
[1755613440111,41.4,181.41,181.39,10.82117212]
[1755613440300,42.1,181.4,181.35,0.65]
[1755613440612,10.82117212,181.42,181.38,10.82117212]
[1755613440613,41.4,181.39,181.38,10.82117212]
[1755613441016,42.1,181.39,181.36,10.82117212]
[1755613441188,41.4,181.39,181.37,10.82117212]
[1755613441389,41.4,181.39,181.38,10.82117212]
[1755613442003,41.4,181.39,181.38,11.47117212]
[1755613442206,41.4,181.39,181.38,10.82117212]
[1755613442598,41.4,181.39,181.38,16.33445914]
[1755613442996,58.41423703,181.39,181.33,0.03]
[1755613443216,11.50117212,181.38,181.33,0.03]
[1755613443717,41.4,181.37,181.34,10.82117212]
[1755613443924,41.4,181.37,181.33,5.54470498]
[1755613443925,11.50117212,181.36,181.33,0.03]
[1755613444097,10.82117212,181.34,181.33,0.03]
[1755613444522,2.06078391,181.34,181.33,0.03]
[1755613444706,0.68,181.34,181.33,0.03]
[1755613445021,11.50117212,181.34,181.33,0.03]
[1755613445327,12.88200453,181.34,181.33,0.03]
[1755613445637,15.09298853,181.34,181.33,0.03]
[1755613446726,15.09302923,181.34,181.33,0.03]
[1755613446941,4.27185711,181.34,181.33,0.03]
[1755613447224,15.09302923,181.34,181.33,0.03]
[1755613447428,4.27185711,181.34,181.33,0.03]
[1755613447630,56.49302923,181.34,181.33,0.03]
[1755613448040,45.67185711,181.34,181.33,0.03]
[1755613448331,56.49302923,181.34,181.33,0.03]
[1755613448535,15.09302923,181.34,181.33,0.03]
[1755613448908,62.00753237,181.34,181.33,0.03]
[1755613450136,55.11215612,181.34,181.33,0.03]
[1755613450503,13.71215612,181.34,181.33,0.03]
[1755613451132,55.11215612,181.34,181.33,0.03]
[1755613451910,45.67185843,181.34,181.33,0.03]
[1755613452244,44.99185843,181.34,181.33,0.03]
[1755613452419,3.59185843,181.34,181.33,11.51117212]
[1755613452622,41.4,181.35,181.34,5.51450314]
[1755613452806,42.78050104,181.35,181.33,6.20471602]
[1755613453001,0.68,181.34,181.33,0.03]
[1755613453338,1.3806142,181.34,181.33,0.03]
[1755613453532,1.3806142,181.34,181.33,5.54480725]
[1755613453711,41.4,181.34,181.33,5.54480725]
[1755613454338,42.78051736,181.34,181.33,5.54480725]
[1755613454741,42.78051736,181.34,181.33,0.03]
[1755613454913,1.38051736,181.34,181.33,11.51117212]
[1755613455107,41.4,181.34,181.33,11.51117212]
[1755613455627,42.78045256,181.34,181.33,11.51117212]
[1755613455827,42.78045256,181.34,181.33,10.85117212]
[1755613456131,42.78045256,181.34,181.33,0.69]
[1755613456433,42.78045256,181.34,181.33,0.03]
[1755613456933,41.4,181.34,181.33,0.03]
[1755613457452,1.38063066,181.34,181.33,0.03]
[1755613457609,42.78063066,181.34,181.33,10.85117212]
[1755613457807,43.46063066,181.34,181.33,0.03]
[1755613458232,52.90117212,181.34,181.33,0.03]